[Event "*** Qualifier 1: Titled Tuesday 3|2 Blitz"]
[Site "Chess.com"]
[Date "2017.04.04"]
[Round "2"]
[White "SmoothAsAHedgehog"]
[Black "cheese111"]
[Result "1-0"]
[WhiteElo "2528"]
[BlackElo "2232"]
[TimeControl "180+2"]
[EndTime "13:23:53 PDT"]
[Termination "SmoothAsAHedgehog won on time"]

1. Nf3 {[%clk 0:03:02]} 1... Nf6 {[%clk 0:02:59.3]} 2. c4 {[%clk 0:03:03]} 2...
g6 {[%clk 0:03:00.4]} 3. g3 {[%clk 0:03:04.5]} 3... Bg7 {[%clk 0:03:01.6]} 4.
Bg2 {[%clk 0:03:06.2]} 4... O-O {[%clk 0:03:02.1]} 5. O-O {[%clk 0:03:06.9]}
5... d6 {[%clk 0:03:02.4]} 6. Nc3 {[%clk 0:03:08.3]} 6... e5 {[%clk 0:03:00.6]}
7. d3 {[%clk 0:03:09.3]} 7... h6 {[%clk 0:02:59.6]} 8. Rb1 {[%clk 0:03:10]} 8...
a5 {[%clk 0:03:01.1]} 9. a3 {[%clk 0:03:10.9]} 9... Re8 {[%clk 0:03:02.2]} 10.
Nd2 {[%clk 0:03:11.1]} 10... c6 {[%clk 0:03:02]} 11. b4 {[%clk 0:03:12.8]} 11...
axb4 {[%clk 0:03:03.2]} 12. axb4 {[%clk 0:03:14.7]} 12... d5 {[%clk 0:03:04.5]}
13. b5 {[%clk 0:03:16.5]} 13... Be6 {[%clk 0:02:50]} 14. Bb2 {[%clk 0:03:16.2]}
14... Nbd7 {[%clk 0:02:42.8]} 15. Qc2 {[%clk 0:03:15.1]} 15... Qc7 {[%clk
0:02:32.2]} 16. Rfc1 {[%clk 0:03:11.1]} 16... Qb6 {[%clk 0:02:10.9]} 17. bxc6
{[%clk 0:02:58.8]} 17... bxc6 {[%clk 0:02:12.8]} 18. Ba1 {[%clk 0:02:26.3]}
18... Qa5 {[%clk 0:01:21.9]} 19. cxd5 {[%clk 0:02:22.9]} 19... cxd5 {[%clk
0:01:11.9]} 20. Rb5 {[%clk 0:02:23.6]} 20... Qc7 {[%clk 0:01:10.1]} 21. Rbb1
{[%clk 0:02:06.4]} 21... Rac8 {[%clk 0:00:58.2]} 22. Qd1 {[%clk 0:02:01.3]}
22... Qa7 {[%clk 0:00:26.9]} 23. Nb5 {[%clk 0:01:59]} 23... Rxc1 {[%clk
0:00:26.7]} 24. Rxc1 {[%clk 0:02:00.8]} 24... Qa5 {[%clk 0:00:21.5]} 25. Nc7
{[%clk 0:01:59.4]} 25... Rc8 {[%clk 0:00:22.1]} 26. Nxe6 {[%clk 0:01:58.8]}
26... Rxc1 {[%clk 0:00:24]} 27. Qxc1 {[%clk 0:01:59.8]} 27... fxe6 {[%clk
0:00:25.9]} 28. e4 {[%clk 0:01:55]} 28... Qc5 {[%clk 0:00:20.9]} 29. Qxc5 {[%clk
0:01:47.7]} 29... Nxc5 {[%clk 0:00:22.8]} 30. Bxe5 {[%clk 0:01:43.8]} 30... Nxd3
{[%clk 0:00:23.2]} 31. Bxf6 {[%clk 0:01:44.8]} 31... Bxf6 {[%clk 0:00:24.9]} 32.
exd5 {[%clk 0:01:46.4]} 32... exd5 {[%clk 0:00:26.5]} 33. Bxd5+ {[%clk
0:01:47.9]} 33... Kg7 {[%clk 0:00:28]} 34. Be4 {[%clk 0:01:47.5]} 34... Nc5
{[%clk 0:00:28.4]} 35. Bc2 {[%clk 0:01:48.7]} 35... Bc3 {[%clk 0:00:28.9]} 36.
Nf1 {[%clk 0:01:49.4]} 36... Ne6 {[%clk 0:00:29.4]} 37. Kg2 {[%clk 0:01:49.3]}
37... Bd4 {[%clk 0:00:29.9]} 38. h4 {[%clk 0:01:46.9]} 38... Bc5 {[%clk
0:00:26.4]} 39. Be4 {[%clk 0:01:46.3]} 39... Nd4 {[%clk 0:00:27.1]} 40. Nd2
{[%clk 0:01:46.6]} 40... Ne6 {[%clk 0:00:26.6]} 41. Nb3 {[%clk 0:01:43.4]} 41...
Bb6 {[%clk 0:00:18.9]} 42. Bd5 {[%clk 0:01:41.1]} 42... Nd4 {[%clk 0:00:19]} 43.
Nd2 {[%clk 0:01:42.7]} 43... Nf5 {[%clk 0:00:19.5]} 44. Nc4 {[%clk 0:01:41.4]}
44... Bc5 {[%clk 0:00:20.1]} 45. Nb2 {[%clk 0:01:36.3]} 45... Ne7 {[%clk
0:00:19.4]} 46. Be4 {[%clk 0:01:36.1]} 46... Bd4 {[%clk 0:00:19.9]} 47. Nd3
{[%clk 0:01:37.4]} 47... Ng8 {[%clk 0:00:20.3]} 48. f4 {[%clk 0:01:36]} 48...
Nf6 {[%clk 0:00:20.1]} 49. Kf3 {[%clk 0:01:37.6]} 49... Nd7 {[%clk 0:00:14.8]}
50. Bd5 {[%clk 0:01:32.7]} 1-0

[Event "*** Qualifier 1: Titled Tuesday 3|2 Blitz"]
[Site "Chess.com"]
[Date "2017.04.04"]
[Round "2"]
[White "AmazingAtlas"]
[Black "korason34"]
[Result "1/2-1/2"]
[WhiteElo "2294"]
[BlackElo "2352"]
[TimeControl "180+2"]
[EndTime "13:23:54 PDT"]
[Termination "Game drawn by repetition"]

1. e4 {[%clk 0:03:02]} 1... c5 {[%clk 0:03:00.2]} 2. Nc3 {[%clk 0:03:00.6]} 2...
a6 {[%clk 0:03:00.2]} 3. Nf3 {[%clk 0:02:59.4]} 3... b5 {[%clk 0:03:00.9]} 4. d4
{[%clk 0:03:00.1]} 4... cxd4 {[%clk 0:03:01.7]} 5. Nxd4 {[%clk 0:03:00.9]} 5...
Bb7 {[%clk 0:03:03.4]} 6. Bd3 {[%clk 0:03:00.8]} 6... d6 {[%clk 0:03:02.1]} 7.
O-O {[%clk 0:03:00]} 7... Nf6 {[%clk 0:03:02.6]} 8. Re1 {[%clk 0:03:00.4]} 8...
Nbd7 {[%clk 0:03:02.9]} 9. Bg5 {[%clk 0:02:58.3]} 9... e6 {[%clk 0:02:58.7]} 10.
a4 {[%clk 0:02:27.8]} 10... b4 {[%clk 0:02:19.5]} 11. Nd5 {[%clk 0:02:28.4]}
11... exd5 {[%clk 0:02:14.4]} 12. exd5+ {[%clk 0:02:29.3]} 12... Be7 {[%clk
0:02:03.1]} 13. Nf5 {[%clk 0:02:29.5]} 13... Ne5 {[%clk 0:02:02.4]} 14. Nxe7
{[%clk 0:01:51.3]} 14... Qxe7 {[%clk 0:02:00.4]} 15. f4 {[%clk 0:01:52.3]} 15...
Bxd5 {[%clk 0:01:51.4]} 16. fxe5 {[%clk 0:01:16.4]} 16... dxe5 {[%clk
0:01:50.5]} 17. Kh1 {[%clk 0:01:05]} 17... O-O {[%clk 0:01:44.5]} 18. Bxf6
{[%clk 0:00:58]} 18... Qxf6 {[%clk 0:01:46.4]} 19. Bxh7+ {[%clk 0:00:58.5]}
19... Kxh7 {[%clk 0:01:48.3]} 20. Qxd5 {[%clk 0:01:00.4]} 20... Rac8 {[%clk
0:01:39.5]} 21. Qe4+ {[%clk 0:00:52]} 21... g6 {[%clk 0:01:28.4]} 22. Rad1
{[%clk 0:00:50.2]} 22... Rfd8 {[%clk 0:01:22.3]} 23. Rxd8 {[%clk 0:00:29.9]}
23... Rxd8 {[%clk 0:01:24.2]} 24. Qxb4 {[%clk 0:00:31.8]} 24... Qf2 {[%clk
0:01:17]} 25. Rg1 {[%clk 0:00:21.2]} 25... Rd2 {[%clk 0:01:12.6]} 26. Qc4 {[%clk
0:00:18.6]} 26... Rxc2 {[%clk 0:01:10.4]} 27. Qxa6 {[%clk 0:00:19.5]} 27... e4
{[%clk 0:01:11.2]} 28. Qf1 {[%clk 0:00:17.9]} 28... Qa7 {[%clk 0:00:42.8]} 29.
Qe1 {[%clk 0:00:17.8]} 29... e3 {[%clk 0:00:38.4]} 30. Rf1 {[%clk 0:00:18.9]}
30... e2 {[%clk 0:00:29.4]} 31. Qh4+ {[%clk 0:00:18.4]} 31... Kg7 {[%clk
0:00:23.4]} 32. Qf6+ {[%clk 0:00:19.4]} 32... Kg8 {[%clk 0:00:23.9]} 33. Qd8+
{[%clk 0:00:20.1]} 33... Kh7 {[%clk 0:00:24.9]} 34. Qh4+ {[%clk 0:00:20.8]}
34... Kg7 {[%clk 0:00:25.7]} 35. Qf6+ {[%clk 0:00:21.5]} 35... Kg8 {[%clk
0:00:27.1]} 36. Qd8+ {[%clk 0:00:22.2]} 36... Kh7 {[%clk 0:00:28.5]} 37. Qh4+
{[%clk 0:00:21.1]} 1/2-1/2

[Event "*** Qualifier 1: Titled Tuesday 3|2 Blitz"]
[Site "Chess.com"]
[Date "2017.04.04"]
[Round "2"]
[White "daro94"]
[Black "Marcus_Harvey"]
[Result "1-0"]
[WhiteElo "2709"]
[BlackElo "2487"]
[TimeControl "180+2"]
[EndTime "13:24:08 PDT"]
[Termination "daro94 won by resignation"]

1. d4 {[%clk 0:03:02]} 1... e6 {[%clk 0:03:01]} 2. c4 {[%clk 0:03:01.8]} 2...
Nf6 {[%clk 0:03:02]} 3. Nf3 {[%clk 0:03:02.3]} 3... Bb4+ {[%clk 0:03:02.5]} 4.
Bd2 {[%clk 0:03:02.1]} 4... Qe7 {[%clk 0:03:02.9]} 5. g3 {[%clk 0:03:02.3]} 5...
O-O {[%clk 0:03:03.5]} 6. Bg2 {[%clk 0:03:02]} 6... Bxd2+ {[%clk 0:03:03.7]} 7.
Qxd2 {[%clk 0:02:58.5]} 7... Ne4 {[%clk 0:03:04]} 8. Qc2 {[%clk 0:02:59.8]} 8...
f5 {[%clk 0:03:05]} 9. O-O {[%clk 0:03:00.3]} 9... d6 {[%clk 0:03:04]} 10. Nc3
{[%clk 0:03:00.9]} 10... Nxc3 {[%clk 0:03:03.4]} 11. Qxc3 {[%clk 0:03:02.8]}
11... Nd7 {[%clk 0:03:03.5]} 12. b4 {[%clk 0:02:58.9]} 12... Nf6 {[%clk
0:03:01]} 13. Nd2 {[%clk 0:02:55.5]} 13... e5 {[%clk 0:03:00.1]} 14. a4 {[%clk
0:02:29.8]} 14... Re8 {[%clk 0:02:30.9]} 15. e3 {[%clk 0:02:29.2]} 15... e4
{[%clk 0:02:24.1]} 16. a5 {[%clk 0:02:26.6]} 16... Bd7 {[%clk 0:02:18.1]} 17. b5
{[%clk 0:02:25.2]} 17... d5 {[%clk 0:02:16.2]} 18. Rab1 {[%clk 0:02:04.7]} 18...
b6 {[%clk 0:02:05.9]} 19. Rfc1 {[%clk 0:02:03.8]} 19... Rec8 {[%clk 0:01:49.7]}
20. Bf1 {[%clk 0:01:58.6]} 20... dxc4 {[%clk 0:01:45.8]} 21. Nxc4 {[%clk
0:01:56.4]} 21... bxa5 {[%clk 0:01:38.2]} 22. Nxa5 {[%clk 0:01:52.6]} 22... Rab8
{[%clk 0:01:30.7]} 23. Qc5 {[%clk 0:01:46.1]} 23... Kf8 {[%clk 0:01:25.6]} 24.
Ra1 {[%clk 0:01:35.2]} 24... Qxc5 {[%clk 0:01:21.8]} 25. Rxc5 {[%clk 0:01:37.1]}
25... Ne8 {[%clk 0:01:10]} 26. Nc6 {[%clk 0:01:35.5]} 26... Rb6 {[%clk
0:00:54.4]} 27. Rxa7 {[%clk 0:01:32]} 27... Nd6 {[%clk 0:00:46.9]} 28. Ne5
{[%clk 0:01:32.8]} 28... Bxb5 {[%clk 0:00:47.8]} 29. Rcxc7 {[%clk 0:01:17.3]}
29... Rxc7 {[%clk 0:00:46.4]} 30. Rxc7 {[%clk 0:01:19.2]} 30... Ra6 {[%clk
0:00:35.3]} 31. Bxb5 {[%clk 0:01:17.6]} 31... Nxb5 {[%clk 0:00:36.6]} 32. Rf7+
{[%clk 0:01:15.6]} 32... Ke8 {[%clk 0:00:33.9]} 33. Rxg7 {[%clk 0:01:16.2]}
33... Nc3 {[%clk 0:00:30.6]} 34. Rxh7 {[%clk 0:01:13.5]} 34... Ra1+ {[%clk
0:00:30]} 35. Kg2 {[%clk 0:01:14.8]} 35... Ne2 {[%clk 0:00:30.4]} 36. Rf7 {[%clk
0:01:04.1]} 36... Rg1+ {[%clk 0:00:26.3]} 37. Kh3 {[%clk 0:01:04.9]} 37... f4
{[%clk 0:00:25.2]} 38. gxf4 {[%clk 0:00:49.6]} 38... Rf1 {[%clk 0:00:21.2]} 39.
d5 {[%clk 0:00:44.3]} 39... Rxf2 {[%clk 0:00:17.8]} 40. d6 {[%clk 0:00:40.6]}
40... Ng1+ {[%clk 0:00:13]} 41. Kg3 {[%clk 0:00:39.7]} 41... Rd2 {[%clk
0:00:14.3]} 42. d7+ {[%clk 0:00:37.5]} 42... Kd8 {[%clk 0:00:14.6]} 43. Rf8+
{[%clk 0:00:38.6]} 43... Ke7 {[%clk 0:00:15.2]} 44. Re8+ {[%clk 0:00:40]} 1-0

[Event "*** Qualifier 1: Titled Tuesday 3|2 Blitz"]
[Site "Chess.com"]
[Date "2017.04.04"]
[Round "2"]
[White "rasmussvane"]
[Black "Bigfish1995"]
[Result "0-1"]
[WhiteElo "2502"]
[BlackElo "2644"]
[TimeControl "180+2"]
[EndTime "13:24:08 PDT"]
[Termination "Bigfish1995 won by resignation"]

1. Nf3 {[%clk 0:03:02]} 1... d5 {[%clk 0:02:59.7]} 2. d4 {[%clk 0:03:02.6]} 2...
Nf6 {[%clk 0:02:59]} 3. c4 {[%clk 0:03:03.5]} 3... c6 {[%clk 0:02:56.9]} 4. Nc3
{[%clk 0:03:04.1]} 4... e6 {[%clk 0:02:56.1]} 5. Bg5 {[%clk 0:03:01.3]} 5... h6
{[%clk 0:02:55.5]} 6. Bxf6 {[%clk 0:03:00.7]} 6... Qxf6 {[%clk 0:02:55.4]} 7.
Qb3 {[%clk 0:02:59.5]} 7... dxc4 {[%clk 0:02:55.3]} 8. Qxc4 {[%clk 0:03:00.3]}
8... Nd7 {[%clk 0:02:56]} 9. e3 {[%clk 0:02:50.5]} 9... g6 {[%clk 0:02:54.7]}
10. Be2 {[%clk 0:02:42.2]} 10... Bg7 {[%clk 0:02:53.9]} 11. O-O {[%clk
0:02:42.7]} 11... O-O {[%clk 0:02:52.4]} 12. Rfd1 {[%clk 0:02:16.2]} 12... Qe7
{[%clk 0:02:49.8]} 13. Qb3 {[%clk 0:02:13.1]} 13... b6 {[%clk 0:02:48.2]} 14.
Rac1 {[%clk 0:01:47.6]} 14... Bb7 {[%clk 0:02:47.3]} 15. Ne4 {[%clk 0:01:45.5]}
15... c5 {[%clk 0:02:40.2]} 16. Nc3 {[%clk 0:01:30.7]} 16... cxd4 {[%clk
0:02:28.4]} 17. Nxd4 {[%clk 0:01:31.7]} 17... Ne5 {[%clk 0:02:18.4]} 18. Bf1
{[%clk 0:01:25.9]} 18... Rfd8 {[%clk 0:02:14]} 19. Qc2 {[%clk 0:01:19.8]} 19...
Qh4 {[%clk 0:01:55.6]} 20. Qe2 {[%clk 0:01:10.5]} 20... Rac8 {[%clk 0:01:44.7]}
21. g3 {[%clk 0:01:11.4]} 21... Qe7 {[%clk 0:01:38.9]} 22. Bg2 {[%clk
0:01:12.4]} 22... Bxg2 {[%clk 0:01:38.2]} 23. Kxg2 {[%clk 0:01:13.7]} 23... Qb7+
{[%clk 0:01:38.3]} 24. Nf3 {[%clk 0:01:12.9]} 24... Rxd1 {[%clk 0:01:26.4]} 25.
Rxd1 {[%clk 0:01:13.6]} 25... Nc4 {[%clk 0:01:26.8]} 26. Rc1 {[%clk 0:00:57.1]}
26... Nxb2 {[%clk 0:01:18.3]} 27. Qxb2 {[%clk 0:00:55.8]} 27... Qc6 {[%clk
0:01:18.8]} 28. Qa3 {[%clk 0:00:53]} 28... Bxc3 {[%clk 0:01:17.9]} 29. Qxa7
{[%clk 0:00:52.8]} 29... g5 {[%clk 0:01:15.9]} 30. h3 {[%clk 0:00:50.6]} 30...
Kg7 {[%clk 0:01:06.5]} 31. Rb1 {[%clk 0:00:48.7]} 31... b5 {[%clk 0:01:03.9]}
32. Qe7 {[%clk 0:00:43.5]} 32... Qd5 {[%clk 0:00:41.2]} 33. g4 {[%clk
0:00:38.2]} 33... b4 {[%clk 0:00:39.5]} 34. h4 {[%clk 0:00:24.3]} 34... Qe4
{[%clk 0:00:36.3]} 35. hxg5 {[%clk 0:00:19.9]} 35... Qxg4+ {[%clk 0:00:35]} 36.
Kh2 {[%clk 0:00:18.2]} 36... Qxf3 {[%clk 0:00:33.1]} 37. gxh6+ {[%clk
0:00:19.3]} 37... Kh7 {[%clk 0:00:33.8]} 38. Qh4 {[%clk 0:00:19.1]} 38... Be5+
{[%clk 0:00:31.9]} 39. Kg1 {[%clk 0:00:17.6]} 39... Rg8+ {[%clk 0:00:28.2]} 0-1

[Event "*** Qualifier 1: Titled Tuesday 3|2 Blitz"]
[Site "Chess.com"]
[Date "2017.04.04"]
[Round "2"]
[White "aa175"]
[Black "Wolverine_master"]
[Result "1/2-1/2"]
[WhiteElo "1882"]
[BlackElo "1984"]
[TimeControl "180+2"]
[EndTime "13:24:14 PDT"]
[Termination "Game drawn - insufficient material"]

1. e4 {[%clk 0:03:02]} 1... d5 {[%clk 0:02:54.3]} 2. exd5 {[%clk 0:03:02.3]}
2... Qxd5 {[%clk 0:02:56.2]} 3. Nf3 {[%clk 0:03:03.5]} 3... Nc6 {[%clk
0:02:56.1]} 4. Nc3 {[%clk 0:03:04.4]} 4... Qd6 {[%clk 0:02:56.8]} 5. Be2 {[%clk
0:03:05.5]} 5... a6 {[%clk 0:02:58.3]} 6. d4 {[%clk 0:03:06.5]} 6... Nf6 {[%clk
0:02:59.8]} 7. Be3 {[%clk 0:03:07.4]} 7... Bg4 {[%clk 0:03:01.2]} 8. h3 {[%clk
0:03:07.8]} 8... Bh5 {[%clk 0:03:01.4]} 9. O-O {[%clk 0:03:03.7]} 9... O-O-O
{[%clk 0:03:02.3]} 10. Bc4 {[%clk 0:02:42.1]} 10... e5 {[%clk 0:02:59.1]} 11.
dxe5 {[%clk 0:02:39]} 11... Nxe5 {[%clk 0:03:00.1]} 12. Qxd6 {[%clk 0:02:38.7]}
12... Nxf3+ {[%clk 0:03:01.1]} 13. gxf3 {[%clk 0:02:34.7]} 13... Bxd6 {[%clk
0:03:01.8]} 14. Kg2 {[%clk 0:02:26.3]} 14... Nd7 {[%clk 0:02:47.6]} 15. Ne4
{[%clk 0:02:23.7]} 15... Ne5 {[%clk 0:02:46.8]} 16. Be2 {[%clk 0:02:14.6]} 16...
Be7 {[%clk 0:02:16.5]} 17. Rfd1 {[%clk 0:02:05.8]} 17... h6 {[%clk 0:02:04.7]}
18. c3 {[%clk 0:02:02.9]} 18... f5 {[%clk 0:01:42]} 19. Ng3 {[%clk 0:01:55.2]}
19... Bg6 {[%clk 0:01:38.2]} 20. Bf4 {[%clk 0:01:55.1]} 20... Bd6 {[%clk
0:01:37]} 21. Rd5 {[%clk 0:01:50.4]} 21... Rhe8 {[%clk 0:01:35]} 22. Rad1 {[%clk
0:01:45]} 22... Bf7 {[%clk 0:01:35.5]} 23. R5d2 {[%clk 0:01:39.4]} 23... g6
{[%clk 0:01:30.7]} 24. Bxh6 {[%clk 0:01:38.3]} 24... Bxa2 {[%clk 0:01:27.6]} 25.
Bg5 {[%clk 0:01:38.9]} 25... Be7 {[%clk 0:01:23.7]} 26. Rxd8+ {[%clk 0:01:35.5]}
26... Bxd8 {[%clk 0:01:22.3]} 27. Bxd8 {[%clk 0:01:31]} 27... Rxd8 {[%clk
0:01:23.4]} 28. Rxd8+ {[%clk 0:01:31.4]} 28... Kxd8 {[%clk 0:01:23.8]} 29. h4
{[%clk 0:01:23.6]} 29... Ke7 {[%clk 0:01:13.4]} 30. h5 {[%clk 0:01:20.9]} 30...
f4 {[%clk 0:01:12.9]} 31. Ne4 {[%clk 0:00:56.9]} 31... gxh5 {[%clk 0:01:11.9]}
32. Nc5 {[%clk 0:00:52.5]} 32... Bd5 {[%clk 0:01:02.8]} 33. b4 {[%clk
0:00:40.8]} 33... h4 {[%clk 0:01:00.8]} 34. Kh3 {[%clk 0:00:32.3]} 34... Bxf3
{[%clk 0:01:01]} 35. Bxf3 {[%clk 0:00:32.9]} 35... Nxf3 {[%clk 0:01:02.7]} 36.
Nxb7 {[%clk 0:00:33.8]} 36... Ng1+ {[%clk 0:00:59.3]} 37. Kxh4 {[%clk
0:00:33.7]} 37... Ne2 {[%clk 0:01:00.7]} 38. Nc5 {[%clk 0:00:31.9]} 38... Nxc3
{[%clk 0:00:55.4]} 39. Nxa6 {[%clk 0:00:32.2]} 39... Kd6 {[%clk 0:00:56]} 40.
Kg4 {[%clk 0:00:28.4]} 40... Nd5 {[%clk 0:00:56.9]} 41. b5 {[%clk 0:00:08.9]}
41... Nc3 {[%clk 0:00:54.1]} 42. Nxc7 {[%clk 0:00:08.5]} 42... Kxc7 {[%clk
0:00:50.7]} 43. Kxf4 {[%clk 0:00:09.9]} 43... Nxb5 {[%clk 0:00:52.6]} 44. Kg5
{[%clk 0:00:09.6]} 44... Nd6 {[%clk 0:00:54.5]} 45. f4 {[%clk 0:00:10.7]} 45...
Kd7 {[%clk 0:00:56.4]} 46. Kf6 {[%clk 0:00:12]} 46... Ne4+ {[%clk 0:00:56.5]}
47. Ke5 {[%clk 0:00:12.7]} 47... Ng3 {[%clk 0:00:57.4]} 48. Kf6 {[%clk
0:00:12.9]} 48... Ke8 {[%clk 0:00:57.2]} 49. Kg5 {[%clk 0:00:13.5]} 49... Kf7
{[%clk 0:00:58.4]} 50. Kg4 {[%clk 0:00:14.4]} 50... Ne2 {[%clk 0:00:59.9]} 51.
f5 {[%clk 0:00:15.1]} 51... Kf6 {[%clk 0:01:01.2]} 52. Kf3 {[%clk 0:00:13.5]}
52... Kxf5 {[%clk 0:01:03.1]} 1/2-1/2

[Event "*** Qualifier 1: Titled Tuesday 3|2 Blitz"]
[Site "Chess.com"]
[Date "2017.04.04"]
[Round "2"]
[White "Feegus"]
[Black "poummba"]
[Result "0-1"]
[WhiteElo "2351"]
[BlackElo "2382"]
[TimeControl "180+2"]
[EndTime "13:24:16 PDT"]
[Termination "poummba won by resignation"]

1. d4 {[%clk 0:03:02]} 1... g6 {[%clk 0:02:56.5]} 2. Bf4 {[%clk 0:03:03]} 2...
Bg7 {[%clk 0:02:57.1]} 3. Nf3 {[%clk 0:03:03.9]} 3... c5 {[%clk 0:02:56.8]} 4.
c3 {[%clk 0:03:04.5]} 4... b6 {[%clk 0:02:56.8]} 5. e3 {[%clk 0:03:04.2]} 5...
Bb7 {[%clk 0:02:57.5]} 6. Nbd2 {[%clk 0:03:04.9]} 6... d5 {[%clk 0:02:58.5]} 7.
Be2 {[%clk 0:03:03.4]} 7... Nf6 {[%clk 0:02:59.5]} 8. O-O {[%clk 0:03:04.6]}
8... O-O {[%clk 0:03:00.7]} 9. a4 {[%clk 0:03:04.4]} 9... Nc6 {[%clk 0:03:01.6]}
10. h3 {[%clk 0:02:57.9]} 10... Re8 {[%clk 0:03:02.7]} 11. Ne5 {[%clk
0:02:53.3]} 11... Nd7 {[%clk 0:03:03.1]} 12. Nxd7 {[%clk 0:02:39]} 12... Qxd7
{[%clk 0:03:03.7]} 13. dxc5 {[%clk 0:02:38.7]} 13... e5 {[%clk 0:02:54.3]} 14.
Bg5 {[%clk 0:02:39.7]} 14... h6 {[%clk 0:02:41.4]} 15. Bh4 {[%clk 0:02:38.4]}
15... g5 {[%clk 0:02:42.1]} 16. Bg3 {[%clk 0:02:38.9]} 16... bxc5 {[%clk
0:02:43.4]} 17. e4 {[%clk 0:02:36.5]} 17... Na5 {[%clk 0:02:12.5]} 18. Bb5
{[%clk 0:02:31.3]} 18... Bc6 {[%clk 0:02:11.6]} 19. Bxc6 {[%clk 0:02:32.3]}
19... Qxc6 {[%clk 0:02:11.1]} 20. b4 {[%clk 0:02:31.4]} 20... cxb4 {[%clk
0:02:07.5]} 21. cxb4 {[%clk 0:02:32.6]} 21... Nc4 {[%clk 0:02:02.6]} 22. Rc1
{[%clk 0:02:30.9]} 22... Rac8 {[%clk 0:01:38.1]} 23. exd5 {[%clk 0:02:20.4]}
23... Qb7 {[%clk 0:01:19.6]} 24. Nxc4 {[%clk 0:02:14.8]} 24... Qxb4 {[%clk
0:01:20.8]} 25. Ne3 {[%clk 0:02:05.1]} 25... Rxc1 {[%clk 0:01:20.6]} 26. Qxc1
{[%clk 0:02:06]} 26... Qxa4 {[%clk 0:01:22.5]} 27. Qc6 {[%clk 0:02:05.4]} 27...
Qxc6 {[%clk 0:01:19.6]} 28. dxc6 {[%clk 0:02:07]} 28... Rc8 {[%clk 0:01:16.7]}
29. Rc1 {[%clk 0:02:05]} 29... Kf8 {[%clk 0:01:14.1]} 30. Nd5 {[%clk 0:02:03.3]}
30... f5 {[%clk 0:01:09.7]} 31. f3 {[%clk 0:02:04]} 31... Kf7 {[%clk 0:00:52.9]}
32. Bf2 {[%clk 0:02:02.1]} 32... Ke6 {[%clk 0:00:54.3]} 33. Nb4 {[%clk 0:01:58]}
33... a5 {[%clk 0:00:54.5]} 34. Na6 {[%clk 0:01:56]} 34... e4 {[%clk 0:00:39]}
35. fxe4 {[%clk 0:01:53.1]} 35... fxe4 {[%clk 0:00:40]} 36. Nc5+ {[%clk
0:01:43.2]} 36... Kd5 {[%clk 0:00:38.2]} 37. Nb3 {[%clk 0:01:22.3]} 37... a4
{[%clk 0:00:25.1]} 38. Rc5+ {[%clk 0:01:22.8]} 38... Kd6 {[%clk 0:00:26]} 39.
Bg3+ {[%clk 0:01:23.2]} 39... Ke6 {[%clk 0:00:26.2]} 40. Nc1 {[%clk 0:01:11.4]}
40... Bd4+ {[%clk 0:00:26.3]} 41. Bf2 {[%clk 0:01:05.2]} 41... Bxc5 {[%clk
0:00:27.2]} 42. Bxc5 {[%clk 0:01:06.5]} 42... Rxc6 {[%clk 0:00:25.9]} 43. Be3
{[%clk 0:01:07.9]} 43... a3 {[%clk 0:00:21.4]} 44. Nb3 {[%clk 0:01:02.2]} 44...
Rc3 {[%clk 0:00:18.7]} 45. Nd4+ {[%clk 0:01:02.6]} 45... Kd5 {[%clk 0:00:19.5]}
46. Nf5 {[%clk 0:00:59.8]} 46... a2 {[%clk 0:00:15.1]} 47. Bd4 {[%clk
0:00:59.4]} 47... a1=Q+ {[%clk 0:00:15.7]} 48. Kh2 {[%clk 0:01:01]} 48... Rxh3+
{[%clk 0:00:09.5]} 49. Kxh3 {[%clk 0:01:01.1]} 49... Qxd4 {[%clk 0:00:10]} 0-1

[Event "*** Qualifier 1: Titled Tuesday 3|2 Blitz"]
[Site "Chess.com"]
[Date "2017.04.04"]
[Round "2"]
[White "Storne89"]
[Black "Kacparov"]
[Result "0-1"]
[WhiteElo "2552"]
[BlackElo "2611"]
[TimeControl "180+2"]
[EndTime "13:24:17 PDT"]
[Termination "Kacparov won on time"]

1. e4 {[%clk 0:03:02]} 1... c5 {[%clk 0:02:55.7]} 2. Nf3 {[%clk 0:03:02.5]} 2...
e6 {[%clk 0:02:54.3]} 3. d4 {[%clk 0:02:59.7]} 3... cxd4 {[%clk 0:02:54.5]} 4.
Nxd4 {[%clk 0:03:01.6]} 4... Nc6 {[%clk 0:02:55.7]} 5. Nc3 {[%clk 0:03:02.6]}
5... Qc7 {[%clk 0:02:56.4]} 6. Be3 {[%clk 0:03:03.6]} 6... a6 {[%clk 0:02:57.2]}
7. a3 {[%clk 0:03:04.9]} 7... Nf6 {[%clk 0:02:57.9]} 8. f4 {[%clk 0:03:05.9]}
8... d6 {[%clk 0:02:55.5]} 9. Qf3 {[%clk 0:03:06.2]} 9... Be7 {[%clk 0:02:56.4]}
10. Bd3 {[%clk 0:02:58]} 10... Rb8 {[%clk 0:02:49.4]} 11. O-O {[%clk 0:02:55.8]}
11... Bd7 {[%clk 0:02:41.7]} 12. Rae1 {[%clk 0:02:52.2]} 12... Nxd4 {[%clk
0:02:34.1]} 13. Bxd4 {[%clk 0:02:53.2]} 13... e5 {[%clk 0:02:35.8]} 14. fxe5
{[%clk 0:02:46.2]} 14... dxe5 {[%clk 0:02:36.4]} 15. Qg3 {[%clk 0:02:47.9]}
15... Bc5 {[%clk 0:02:31.5]} 16. Bxc5 {[%clk 0:02:49.2]} 16... Qxc5+ {[%clk
0:02:32]} 17. Kh1 {[%clk 0:02:50.9]} 17... Kf8 {[%clk 0:02:12]} 18. Nd5 {[%clk
0:02:29]} 18... Qd6 {[%clk 0:02:06]} 19. Bc4 {[%clk 0:02:05.5]} 19... Nxd5
{[%clk 0:02:00]} 20. Bxd5 {[%clk 0:01:56.1]} 20... f6 {[%clk 0:01:39.8]} 21. Rd1
{[%clk 0:01:55.9]} 21... Qe7 {[%clk 0:01:33.2]} 22. Qf2 {[%clk 0:01:47.8]} 22...
Bg4 {[%clk 0:01:28.1]} 23. Rd2 {[%clk 0:01:43.8]} 23... Rc8 {[%clk 0:01:10.7]}
24. Qb6 {[%clk 0:01:22.7]} 24... Rc7 {[%clk 0:01:04.1]} 25. h3 {[%clk
0:01:19.2]} 25... Bc8 {[%clk 0:01:03.2]} 26. b4 {[%clk 0:01:12.5]} 26... h5
{[%clk 0:01:03.5]} 27. Rfd1 {[%clk 0:01:11.4]} 27... g5 {[%clk 0:00:56.2]} 28.
c4 {[%clk 0:00:50.4]} 28... Kg7 {[%clk 0:00:57]} 29. Rf1 {[%clk 0:00:46.3]}
29... g4 {[%clk 0:00:55.7]} 30. Rxf6 {[%clk 0:00:45.9]} 30... Qxf6 {[%clk
0:00:55.4]} 31. Qxc7+ {[%clk 0:00:47]} 31... Kh6 {[%clk 0:00:56.4]} 32. Qc5
{[%clk 0:00:28]} 32... Qf1+ {[%clk 0:00:52.2]} 33. Qg1 {[%clk 0:00:25.9]} 33...
Qf4 {[%clk 0:00:49.4]} 34. Rf2 {[%clk 0:00:25.4]} 34... Qg3 {[%clk 0:00:50.5]}
35. Rf6+ {[%clk 0:00:25.7]} 35... Kg5 {[%clk 0:00:51.3]} 36. Rd6 {[%clk
0:00:16.3]} 36... Rf8 {[%clk 0:00:50.9]} 37. Qc1+ {[%clk 0:00:12.1]} 37... Rf4
{[%clk 0:00:51.5]} 38. Rd8 {[%clk 0:00:08.6]} 38... Kh4 {[%clk 0:00:42.7]} 39.
Rxc8 {[%clk 0:00:06.4]} 39... gxh3 {[%clk 0:00:43.5]} 40. Qg1 {[%clk 0:00:05.8]}
40... Rf2 {[%clk 0:00:37.7]} 41. Rg8 {[%clk 0:00:03.7]} 41... hxg2+ {[%clk
0:00:35.7]} 42. Qxg2 {[%clk 0:00:04.8]} 42... Rxg2 {[%clk 0:00:36.9]} 0-1